bitfinex-derivatives/quotes_SOLF0:USTF0_20241206
["timestamp","ask_amount","ask_price","bid_price","bid_amount"]
[1733467286177,7.90403084,238.89,238.81,2.06]
[1733467286874,5.81263084,238.89,238.77,6.88079078]
[1733467287176,2.06,238.91,238.78,2.82577027]
[1733467287177,7.90453084,238.84,238.78,2.82577027]
[1733467287375,7.90453084,238.84,238.77,1.3369]
[1733467287376,5.81263084,238.84,238.77,1.3369]
[1733467287573,5.81263084,238.84,238.76,9.14973084]
[1733467287769,5.81263084,238.84,238.77,2.82617897]
[1733467287980,5.81263084,238.84,238.76,13.33371341]
[1733467288174,5.81263084,238.84,238.77,2.82623568]
[1733467288478,5.81263084,238.84,238.76,13.33371341]
[1733467288675,7.90453084,238.84,238.78,2.0923]
[1733467290679,2.0919,238.83,238.78,2.0923]
[1733467291975,5.81263084,238.84,238.78,2.0923]
[1733467292273,2.0918,238.85,238.79,2.0923]
[1733467292478,7.87263084,238.86,238.79,2.0923]
[1733467292875,9.96433084,238.86,238.81,2.0921]
[1733467293580,5.81263084,238.87,238.83,2.0919]
[1733467295279,5.81263084,238.87,238.8,5.81263084]
[1733467296774,2.06,238.88,238.8,5.81263084]
[1733467296974,5.81263084,238.89,238.82,5.81263084]
[1733467297177,5.81263084,238.89,238.83,4.16434507]
[1733467297684,5.81263084,238.89,238.85,2.0917]
[1733467300477,2.06,238.97,238.86,5.81263084]
[1733467300684,5.81263084,238.96,238.88,5.81263084]
[1733467301083,7.90363084,238.94,238.86,7.90423084]
[1733467301282,7.90363084,238.94,238.86,5.81263084]
[1733467302476,7.90363084,238.94,238.88,2.0914]
[1733467302981,7.90353084,238.96,238.9,2.0913]
[1733467303289,5.81263084,238.96,238.89,4.26267292]
[1733467304677,5.81263084,238.96,238.9,2.0913]
[1733467304678,2.0909,238.95,238.9,2.0913]
[1733467307086,5.81263084,238.96,238.9,2.0913]
[1733467308182,5.81263084,238.96,238.91,2.0912]
[1733467308382,5.81263084,239.0,238.92,5.81263084]
[1733467308883,2.0906,238.98,238.92,7.90373084]
[1733467309487,2.0907,238.97,238.92,7.90373084]
[1733467311183,1.2743,239.06,238.92,5.81263084]
[1733467311389,1.2743,239.06,238.96,2.0908]
[1733467311390,5.81263084,239.03,238.96,2.0908]
[1733467311587,5.81263084,239.03,238.94,5.81263084]
[1733467311884,7.90303084,239.01,238.94,2.091]
[1733467312088,1.2743,239.06,238.91,12.05483213]
[1733467312089,5.81263084,238.99,238.91,12.05483213]
[1733467312488,5.81263084,238.99,238.91,9.99483213]
[1733467312686,5.81263084,238.99,238.92,2.06]
[1733467313788,2.0908,238.96,238.92,2.06]
[1733467313989,5.81263084,238.99,238.92,2.06]
[1733467314187,2.0905,239.0,238.93,5.81263084]
[1733467315091,5.81263084,238.99,238.92,2.06]
[1733467315285,1.2743,239.06,238.91,6.24220129]
[1733467315286,2.0908,238.96,238.91,6.24220129]
[1733467315486,5.81263084,238.97,238.91,2.06]
[1733467315682,5.81263084,238.95,238.89,6.23808468]
[1733467315991,2.091,238.94,238.89,6.23808468]
[1733467316793,2.091,238.94,238.89,8.32938468]
[1733467321895,2.0911,238.93,238.87,2.0915]
[1733467322095,2.0911,238.93,238.88,2.06]
[1733467322896,5.81263084,238.93,238.85,2.0917]
[1733467323100,5.81263084,238.93,238.84,2.06]
[1733467323294,2.5997,238.96,238.87,5.81263084]
[1733467324598,2.0911,238.93,238.88,6.19762169]
[1733467326000,2.0913,238.91,238.86,2.0916]
[1733467326898,2.0914,238.89,238.84,7.87263084]
[1733467327603,5.81263084,238.91,238.82,7.13973084]
[1733467327898,5.81263084,238.89,238.81,2.06]
[1733467328301,2.0917,238.86,238.8,7.87263084]
[1733467328601,5.81263084,238.87,238.8,7.87263084]
[1733467328897,5.81263084,238.81,238.75,1.239]
[1733467329095,5.81263084,238.81,238.74,5.81263084]
[1733467329994,2.0923,238.79,238.74,5.81263084]
[1733467330191,5.81263084,238.81,238.74,5.81263084]
[1733467331798,2.0924,238.78,238.74,5.81263084]
[1733467333497,2.0922,238.8,238.74,5.81263084]
[1733467333696,2.06,238.82,238.74,5.81263084]
[1733467334203,7.87263084,238.82,238.74,5.81263084]
[1733467334706,2.0923,238.79,238.74,5.81263084]
[1733467337007,2.0924,238.78,238.74,5.81263084]
[1733467339611,2.06,238.82,238.74,5.81263084]
[1733467339909,7.87263084,238.82,238.74,5.81263084]
[1733467342712,5.81263084,238.78,238.69,2.06]
[1733467342912,5.81263084,238.76,238.69,4.1531]
[1733467343206,2.0928,238.74,238.69,2.0931]
[1733467343407,2.0928,238.74,238.68,7.90583084]
[1733467345219,5.81263084,238.76,238.68,2.0932]
[1733467345412,2.093,238.71,238.66,6.32102287]
[1733467345708,3.8551,238.86,238.69,5.81263084]
[1733467345913,5.81263084,238.78,238.71,5.81263084]
[1733467346111,2.06,238.77,238.71,5.81263084]
[1733467346315,4.1525,238.77,238.71,7.90563084]
[1733467346509,4.1525,238.77,238.73,5.81263084]
[1733467346816,2.06,238.8,238.73,10.04776938]
[1733467347614,2.06,238.84,238.77,5.81263084]
[1733467347814,7.87263084,238.85,238.77,5.81263084]
[1733467348014,2.0919,238.84,238.77,7.90503084]
[1733467348214,7.87263084,238.85,238.77,5.81263084]
[1733467348613,2.0919,238.84,238.77,5.81263084]
[1733467349112,2.0919,238.84,238.73,6.14433242]
[1733467349113,2.0917,238.86,238.8,2.0922]
[1733467349412,2.0917,238.86,238.81,5.81263084]
[1733467350213,25.97947425,238.88,238.81,5.81263084]
[1733467350419,2.0918,238.85,238.81,5.81263084]
[1733467351009,25.97947425,238.88,238.81,5.81263084]
[1733467351209,2.06,238.88,238.81,5.81263084]
[1733467352716,4.1515,238.88,238.82,2.092]
[1733467354420,2.0917,238.86,238.81,7.90473084]
[1733467354620,2.06,238.88,238.81,5.81263084]
[1733467354821,2.06,238.88,238.8,4.15882991]
[1733467354822,5.81263084,238.85,238.8,4.15882991]
[1733467355122,5.81263084,238.85,238.76,7.87263084]
[1733467355724,5.81263084,238.85,238.78,5.81263084]
[1733467356716,2.0919,238.84,238.78,7.90493084]
[1733467357222,2.0919,238.84,238.79,2.0922]
[1733467358524,2.0919,238.84,238.78,5.81263084]
[1733467359035,5.81263084,238.85,238.78,5.81263084]
[1733467359619,5.81263084,238.85,238.76,7.87263084]
[1733467360024,5.81263084,238.85,238.74,3.7842]
[1733467360226,5.81263084,238.83,238.75,5.81263084]
[1733467361027,5.81263084,238.83,238.76,2.0925]
[1733467361331,5.81263084,238.85,238.76,2.0925]
[1733467361520,5.81263084,238.87,238.77,5.81263084]
[1733467361823,5.81263084,238.85,238.77,5.81263084]
[1733467362225,2.0921,238.82,238.77,7.90503084]
[1733467362528,5.81263084,238.85,238.77,5.81263084]
[1733467363334,5.81263084,238.85,238.76,2.0925]
[1733467364221,5.81263084,238.83,238.76,2.0925]
[1733467364831,2.0918,238.85,238.76,2.0925]
[1733467365028,5.81263084,238.85,238.76,2.0925]
[1733467365231,5.81263084,238.85,238.77,5.81263084]
[1733467366233,2.092,238.83,238.77,7.90503084]
[1733467366530,5.81263084,238.85,238.77,7.90503084]
[1733467366734,23.90934738,238.97,238.79,5.81263084]
[1733467366735,7.87263084,238.87,238.79,5.81263084]
[1733467366923,2.0917,238.86,238.8,4.18489849]
[1733467367129,2.0917,238.86,238.79,5.81263084]
[1733467367529,2.0917,238.86,238.79,10.05364064]
[1733467368428,2.0918,238.84,238.79,7.90493084]
[1733467369137,2.0918,238.84,238.79,12.19086497]
[1733467372032,2.0918,238.84,238.8,2.0922]
[1733467372631,7.87263084,238.87,238.8,2.0922]
[1733467372932,2.0917,238.85,238.8,2.0922]
[1733467374237,2.06,238.87,238.8,2.0922]
[1733467374534,2.0918,238.84,238.8,2.0922]
[1733467375930,2.0918,238.85,238.8,2.0922]
[1733467377438,2.0915,238.88,238.84,5.81263084]
[1733467378031,5.81263084,238.9,238.82,5.81263084]
[1733467378231,2.0916,238.87,238.82,5.81263084]
[1733467379531,2.0917,238.86,238.82,2.092]
[1733467381133,2.0917,238.86,238.81,4.17037961]
[1733467381134,5.81263084,238.88,238.8,7.90473084]
[1733467381438,2.0919,238.84,238.8,7.90473084]
[1733467382034,5.81263084,238.88,238.8,7.90473084]
[1733467382035,2.0918,238.85,238.8,7.90473084]
[1733467383139,2.0916,238.87,238.83,2.0919]
[1733467383337,5.81263084,238.9,238.83,2.0919]
[1733467383738,5.81263084,238.88,238.83,2.0919]
[1733467384239,5.81263084,238.88,238.8,5.81263084]
[1733467384438,5.81263084,238.88,238.79,4.2598674]
[1733467384739,5.81263084,238.88,238.78,7.87263084]
[1733467385041,2.0917,238.86,238.81,2.0921]
[1733467392241,2.0917,238.86,238.8,4.27296425]
[1733467392242,2.0917,238.86,238.82,2.092]
[1733467392542,2.0916,238.87,238.82,2.092]
[1733467394352,5.81263084,238.88,238.82,2.092]
[1733467394544,2.0917,238.86,238.82,2.092]
[1733467396355,5.81263084,238.88,238.82,2.092]
[1733467396651,2.0916,238.87,238.82,2.092]
[1733467397154,5.81263084,238.86,238.78,2.06]
[1733467397352,5.81263084,238.86,238.79,2.83298865]
[1733467397554,2.0918,238.85,238.8,2.0922]
[1733467397750,5.81263084,238.86,238.8,2.0922]
[1733467398655,2.0918,238.84,238.8,2.0922]
[1733467399047,5.81263084,238.86,238.8,2.0922]
[1733467399250,5.81263084,238.86,238.76,2.06]
[1733467399455,5.81263084,238.84,238.77,9.4591199]
[1733467399654,5.81263084,238.84,238.77,2.0924]
[1733467399855,2.0921,238.81,238.78,2.83352995]
[1733467400048,2.0921,238.81,238.77,2.0924]
[1733467400252,2.06,238.87,238.78,4.92592435]
[1733467400453,5.81263084,238.86,238.78,2.0924]
[1733467400754,2.0919,238.84,238.78,2.0924]
[1733467400955,2.0919,238.84,238.79,2.0922]
[1733467402651,2.0919,238.83,238.79,2.0922]
[1733467403356,2.0918,238.85,238.79,2.0922]
[1733467403749,7.87263084,238.87,238.79,2.0922]
[1733467403950,2.0919,238.84,238.79,2.0922]
[1733467405054,2.0919,238.83,238.79,2.0922]
[1733467405559,2.0918,238.84,238.79,2.0922]
[1733467406054,5.81263084,238.86,238.78,2.0924]
[1733467407556,5.81263084,238.84,238.78,2.0924]
[1733467407758,2.0919,238.83,238.77,2.0924]
[1733467408258,2.0919,238.83,238.76,5.81263084]
[1733467409163,2.0919,238.83,238.77,4.28708159]
[1733467409660,2.0919,238.83,238.78,2.0924]
[1733467410758,5.81263084,238.84,238.77,4.28708159]
[1733467410759,2.092,238.82,238.77,4.28708159]
[1733467410962,2.092,238.82,238.75,5.81263084]
[1733467411159,2.092,238.82,238.75,10.00464869]
[1733467411760,2.092,238.82,238.75,4.19201785]
[1733467411962,5.81263084,238.84,238.72,5.81263084]
[1733467412158,5.81263084,238.84,238.72,12.1224342]
[1733467412466,2.0923,238.79,238.74,2.0927]
[1733467412859,5.81263084,238.84,238.72,12.1224342]
[1733467413068,2.0924,238.78,238.72,8.40260336]
[1733467413267,2.0924,238.78,238.72,14.2152342]
[1733467413560,2.0925,238.77,238.72,6.34260336]
[1733467413765,5.81263084,238.8,238.7,5.81263084]
[1733467414166,5.81263084,238.8,238.69,2.06]
[1733467414558,5.81263084,238.78,238.69,2.06]
[1733467414762,5.81263084,238.78,238.68,2.0932]
[1733467414964,5.81263084,238.78,238.68,5.81263084]
[1733467415868,2.0926,238.75,238.69,2.0931]
[1733467416067,2.0926,238.75,238.68,5.81263084]
[1733467416269,5.81263084,238.79,238.7,5.81263084]
[1733467417668,2.0926,238.75,238.7,7.90563084]
[1733467418070,2.06,238.82,238.7,5.81263084]
[1733467418270,2.06,238.82,238.72,7.90553084]
[1733467418271,2.0924,238.78,238.72,7.90553084]
[1733467418575,2.0924,238.78,238.72,12.19810777]
[1733467418966,2.06,238.82,238.67,5.9038]
[1733467418967,5.81263084,238.79,238.67,5.9038]
[1733467419164,5.81263084,238.79,238.7,5.81263084]
[1733467419770,2.0928,238.74,238.7,5.81263084]
[1733467421466,2.0928,238.73,238.67,7.997]
[1733467421675,2.0928,238.73,238.69,5.81263084]
[1733467421865,2.0928,238.73,238.67,5.937]
[1733467422065,2.0927,238.75,238.68,5.81263084]
[1733467422372,7.87263084,238.77,238.68,5.81263084]
[1733467422872,2.0928,238.73,238.68,7.90583084]
[1733467426878,2.0929,238.72,238.67,1.2712]
[1733467427176,2.0929,238.72,238.68,5.81263084]
[1733467427675,2.0929,238.72,238.68,7.90583084]
[1733467430071,7.87263084,238.77,238.66,4.22772287]
[1733467430072,5.81263084,238.75,238.66,4.22772287]
[1733467430273,2.0931,238.7,238.64,2.0936]
[1733467430479,5.81263084,238.73,238.64,7.90623084]
[1733467431077,2.093,238.71,238.64,7.90623084]
[1733467431276,5.81263084,238.73,238.64,7.90623084]
[1733467431979,5.81263084,238.71,238.64,7.90623084]
[1733467432278,2.0931,238.7,238.64,7.90623084]
[1733467432478,5.81263084,238.71,238.64,2.0936]
[1733467432779,5.81263084,238.71,238.64,7.90623084]
[1733467433679,2.0932,238.69,238.64,7.90623084]
[1733467436983,2.0932,238.69,238.64,2.0936]
[1733467437179,2.0932,238.69,238.64,7.90623084]
[1733467437377,2.0932,238.68,238.64,7.90623084]
[1733467438175,2.06,238.72,238.64,5.81263084]
[1733467438371,2.06,238.72,238.66,5.81263084]
[1733467439075,4.1529,238.72,238.67,2.0933]
[1733467439579,2.0929,238.72,238.67,2.0933]
[1733467442080,2.093,238.71,238.66,5.81263084]
[1733467443184,2.093,238.71,238.65,4.26643406]
[1733467443385,2.0932,238.69,238.64,2.0935]
[1733467443776,2.0932,238.69,238.58,5.60163986]
[1733467443777,5.81263084,238.68,238.58,5.60163986]
[1733467443977,2.0933,238.68,238.62,7.90633084]
[1733467444181,1.2667,238.74,238.64,5.81263084]
[1733467444478,5.81263084,238.74,238.66,5.81263084]
[1733467445581,2.0929,238.73,238.66,7.90603084]
[1733467445784,2.06,238.75,238.66,7.90603084]
[1733467445981,5.81263084,238.74,238.66,5.81263084]
[1733467446284,5.81263084,238.72,238.62,2.06]
[1733467446483,5.81263084,238.72,238.64,5.81263084]
[1733467447184,5.81263084,238.72,238.62,2.06]
[1733467447386,5.81263084,238.7,238.62,7.87263084]
[1733467447689,2.0933,238.68,238.63,2.0936]
[1733467447890,5.81263084,238.7,238.62,2.06]
[1733467448188,7.87263084,238.7,238.62,2.06]
[1733467449588,2.0933,238.68,238.63,2.0937]
[1733467450988,2.0933,238.67,238.62,4.1538]
[1733467451192,2.0933,238.67,238.62,9.96643084]
[1733467452286,2.0933,238.67,238.62,4.1538]
[1733467452488,7.87263084,238.7,238.62,2.06]
[1733467452894,7.87263084,238.7,238.6,2.0939]
[1733467453094,7.87263084,238.7,238.6,7.90653084]
[1733467453289,2.0935,238.66,238.6,7.90653084]
[1733467453485,7.87263084,238.7,238.6,7.90653084]
[1733467453693,2.0933,238.67,238.6,7.90653084]
[1733467453896,7.87263084,238.7,238.6,7.90653084]
[1733467454488,2.0935,238.65,238.6,7.90653084]
[1733467455694,2.0935,238.65,238.6,5.81263084]
[1733467455894,2.0935,238.65,238.61,2.0938]
[1733467456090,2.0931,238.69,238.64,5.81263084]
[1733467457395,2.0932,238.68,238.62,2.0937]
[1733467457695,2.06,238.7,238.62,7.90633084]
[1733467457902,5.81263084,238.71,238.62,7.90633084]
[1733467458098,2.0933,238.68,238.62,7.90633084]
[1733467458998,2.0933,238.68,238.62,2.0937]
[1733467459195,2.0933,238.67,238.62,7.90633084]
[1733467463498,2.0933,238.67,238.62,2.0937]
[1733467466300,2.0935,238.65,238.6,2.0939]
[1733467467603,2.0934,238.66,238.6,2.0939]
[1733467467799,2.0934,238.66,238.61,2.0938]
[1733467468208,5.81263084,238.65,238.44,5.83681335]
[1733467468503,2.0939,238.6,238.55,5.81263084]
[1733467469009,5.81263084,238.63,238.55,5.81263084]
[1733467469210,2.0939,238.61,238.56,2.0943]
[1733467469607,5.81263084,238.63,238.55,5.81263084]
[1733467469907,2.094,238.6,238.55,7.90693084]
[1733467473506,2.0942,238.57,238.49,1.2993]
[1733467473709,2.0942,238.57,238.52,5.81263084]
[1733467474703,2.0942,238.57,238.52,7.90723084]
[1733467476712,2.0943,238.56,238.52,5.81263084]
[1733467477113,2.0944,238.55,238.52,5.81263084]
[1733467477514,2.0944,238.55,238.5,7.90733084]
[1733467477816,5.81263084,238.51,238.4,2.0957]
[1733467478016,2.5856,238.54,238.41,5.81263084]
[1733467478311,7.87263084,238.53,238.45,5.81263084]
[1733467478508,2.0947,238.52,238.46,2.0951]
[1733467478814,7.87263084,238.53,238.45,5.81263084]
[1733467479017,2.0951,238.48,238.4,2.0957]
[1733467479214,2.0951,238.48,238.23,46.6945068]
[1733467479215,5.81263084,238.41,238.21,5.83681335]
[1733467479413,1.3,238.54,238.17,71.0417602]
[1733467479414,2.06,238.4,238.23,5.81263084]
[1733467479717,2.06,238.45,238.29,5.81263084]
[1733467479910,2.06,238.51,238.35,5.81263084]
[1733467480109,7.90793084,238.45,238.35,5.81263084]
[1733467480309,2.06,238.52,238.3,2.6351]
[1733467480310,5.81263084,238.39,238.3,2.6351]
[1733467480508,5.81263084,238.39,238.31,2.06]
[1733467480707,5.81263084,238.42,238.32,7.90893084]
[1733467481110,5.81263084,238.42,238.32,2.0963]
[1733467481313,5.81263084,238.42,238.33,2.06]
[1733467481916,5.81263084,238.42,238.34,2.06]
[1733467482119,5.81263084,238.42,238.33,2.0963]
[1733467482317,5.81263084,238.42,238.34,2.06]
[1733467483018,5.81263084,238.4,238.33,2.0963]
[1733467483217,5.81263084,238.4,238.34,2.06]
[1733467483616,2.06,238.49,238.34,2.06]
[1733467483817,5.81263084,238.43,238.34,2.06]
[1733467484018,2.06,238.49,238.34,7.87263084]
[1733467484216,5.81263084,238.43,238.35,1.2461]
[1733467484416,2.0949,238.49,238.38,2.0958]
[1733467484617,5.81263084,238.45,238.39,2.06]
[1733467486424,5.81263084,238.45,238.4,2.06]
[1733467486925,5.81263084,238.43,238.35,5.3966747]
[1733467487122,5.81263084,238.43,238.36,4.156]
[1733467489018,2.06,238.54,238.36,2.06]
[1733467489227,2.095,238.48,238.37,5.81263084]
[1733467489425,5.81263084,238.45,238.36,2.06]
[1733467489624,5.81263084,238.43,238.36,2.06]
[1733467490524,5.81263084,238.43,238.38,2.0958]
[1733467490725,5.81263084,238.43,238.36,2.06]
[1733467491128,5.81263084,238.43,238.37,2.0959]
[1733467491327,2.0953,238.45,238.37,2.0959]
[1733467491528,5.81263084,238.44,238.37,2.0959]
[1733467491823,5.81263084,238.44,238.38,2.0958]
[1733467492319,2.06,238.53,238.39,2.06]
[1733467492521,5.81263084,238.41,238.39,2.06]
[1733467492927,5.81263084,238.43,238.39,2.06]
[1733467493317,2.06,238.53,238.39,2.06]
[1733467493519,5.81263084,238.44,238.42,2.0955]
[1733467493721,5.81263084,238.46,238.42,2.0955]
[1733467493920,5.81263084,238.46,238.39,2.06]
[1733467493921,5.81263084,238.46,238.4,2.5955]
[1733467494719,5.81263084,238.46,238.41,2.06]
[1733467496119,5.81263084,238.46,238.4,4.6911]
[1733467496330,2.06,238.56,238.41,2.06]
[1733467496527,5.81263084,238.45,238.42,2.0955]
[1733467496723,5.81263084,238.45,238.43,2.06]
[1733467497424,5.81263084,238.45,238.4,2.5955]
[1733467497425,5.81263084,238.45,238.44,2.08]
[1733467499533,5.81263084,238.45,238.4,2.5955]
[1733467499738,5.81263084,238.43,238.4,2.5955]
[1733467499935,5.81263084,238.45,238.4,2.5955]
[1733467500132,0.1508,238.55,238.4,2.5955]
[1733467500334,5.81263084,238.45,238.4,2.5955]
[1733467500535,7.90793084,238.45,238.4,2.5955]
[1733467501531,0.1508,238.55,238.4,2.08]
[1733467501532,7.90813084,238.43,238.4,2.08]
[1733467502037,7.90813084,238.43,238.38,2.0959]
[1733467502334,7.90813084,238.43,238.4,2.08]
[1733467502839,5.81263084,238.43,238.38,2.08]
[1733467503137,5.81263084,238.46,238.38,2.08]
[1733467503337,2.2308,238.55,238.39,2.7115]
[1733467503539,5.81263084,238.47,238.4,2.0957]
[1733467504435,7.90793084,238.45,238.4,2.0957]
[1733467505536,7.90793084,238.45,238.39,2.7115]
[1733467505839,2.0953,238.45,238.39,2.7115]
[1733467506039,5.81263084,238.44,238.39,2.7115]
[1733467506436,2.0953,238.45,238.39,2.7115]
[1733467506740,2.0953,238.45,238.4,2.0957]
[1733467509742,2.0949,238.49,238.44,2.0953]
[1733467510045,5.81263084,238.49,238.44,2.08]
[1733467510644,2.095,238.48,238.44,2.08]
[1733467511241,5.81263084,238.47,238.44,2.08]
[1733467513148,7.90773084,238.48,238.44,2.08]
[1733467513349,7.90773084,238.48,238.43,2.0954]
[1733467513551,7.90773084,238.48,238.44,2.08]
[1733467513851,5.81263084,238.46,238.43,2.08]
[1733467514042,5.81263084,238.44,238.42,2.08]
[1733467514247,5.81263084,238.44,238.39,2.7115]
[1733467514445,7.90803084,238.44,238.4,2.08]
[1733467515546,5.81263084,238.44,238.39,2.7115]
[1733467515846,2.0955,238.43,238.41,2.08]
[1733467516448,5.81263084,238.42,238.39,1.3426]
[1733467516653,5.81263084,238.4,238.39,2.08]
[1733467516849,5.81263084,238.4,238.32,5.81263084]
[1733467517048,5.81263084,238.4,238.36,2.08]
[1733467517246,5.81263084,238.4,238.35,1.2461]
[1733467517450,5.81263084,238.38,238.3,8.34823084]
[1733467517645,5.81263084,238.38,238.31,2.08]
[1733467518346,5.81263084,238.38,238.33,2.0963]
[1733467518347,7.90853084,238.38,238.33,2.0963]
[1733467519248,2.096,238.37,238.32,2.08]
[1733467519549,2.08,238.46,238.32,2.08]
[1733467519743,5.81263084,238.41,238.33,5.81263084]
[1733467521147,5.81263084,238.35,238.33,2.08]
[1733467521347,5.81263084,238.35,238.26,5.81263084]
[1733467521549,2.08,238.44,238.27,2.08]
[1733467521846,5.81263084,238.32,238.27,2.08]
[1733467522249,2.0965,238.31,238.28,2.08]
[1733467522452,5.81263084,238.3,238.24,2.08]
[1733467522650,5.81263084,238.28,238.24,2.08]
[1733467523054,7.90943084,238.28,238.24,2.08]
[1733467523249,5.81263084,238.28,238.23,2.08]
[1733467523548,5.81263084,238.3,238.22,5.81263084]
[1733467523754,5.81263084,238.3,238.23,2.08]
[1733467523945,2.08,238.36,238.24,5.81263084]
[1733467524147,5.81263084,238.33,238.26,5.81263084]
[1733467524652,5.81263084,238.33,238.28,2.0967]
[1733467524844,5.81263084,238.33,238.29,2.08]
[1733467526450,7.90893084,238.33,238.29,2.08]
[1733467526644,2.08,238.4,238.29,2.08]
[1733467526850,5.81263084,238.35,238.29,2.08]
[1733467527752,2.0963,238.33,238.29,2.08]
[1733467529557,2.0964,238.32,238.29,2.08]
[1733467529753,5.81263084,238.33,238.29,2.08]
[1733467530356,2.0964,238.32,238.29,2.08]
[1733467531161,2.08,238.4,238.26,2.06]
[1733467531162,5.81263084,238.31,238.26,2.06]
[1733467531457,5.81263084,238.33,238.26,2.06]
[1733467531854,2.0964,238.33,238.26,2.06]
[1733467532061,2.0964,238.33,238.26,7.87263084]
[1733467532560,2.0964,238.32,238.27,2.0968]
[1733467533957,2.08,238.4,238.26,7.87263084]
[1733467534156,2.0961,238.36,238.26,7.87263084]
[1733467534365,5.81263084,238.35,238.27,2.4905]
[1733467534556,5.81263084,238.33,238.27,2.4905]
[1733467535164,2.0964,238.32,238.28,2.06]
[1733467535361,5.81263084,238.33,238.28,2.06]
[1733467535658,2.0964,238.32,238.27,2.06]
[1733467536260,2.0964,238.32,238.27,4.1568]
[1733467536758,5.81263084,238.28,238.19,4.5505]
[1733467536964,5.81263084,238.28,238.21,2.0973]
[1733467537156,7.90923084,238.3,238.22,5.81263084]
[1733467537357,7.90923084,238.3,238.23,4.28546243]
[1733467537663,5.81263084,238.3,238.24,2.06]
[1733467537859,2.06,238.34,238.24,2.06]
[1733467538060,5.81263084,238.32,238.24,2.06]
[1733467538260,2.0966,238.3,238.24,2.06]
[1733467538461,5.81263084,238.32,238.24,2.06]
[1733467538663,2.06,238.34,238.24,2.06]
[1733467538962,7.90923084,238.3,238.24,2.06]
[1733467539664,7.90923084,238.3,238.25,2.097]
[1733467539860,5.81263084,238.3,238.24,2.06]
[1733467540260,5.81263084,238.3,238.23,4.28546243]
[1733467540565,5.81263084,238.3,238.24,2.06]
[1733467540764,5.81263084,238.28,238.19,8.30313084]
[1733467540965,5.81263084,238.28,238.22,2.06]
[1733467541167,2.0969,238.27,238.22,2.06]
[1733467541667,5.81263084,238.28,238.22,2.06]
[1733467541863,2.0969,238.26,238.22,2.06]
[1733467542770,5.81263084,238.28,238.22,2.06]
[1733467543072,2.0971,238.25,238.22,2.06]
[1733467545370,2.0971,238.25,238.2,2.0974]
[1733467548074,5.81263084,238.26,238.18,2.06]
[1733467548776,5.81263084,238.24,238.17,1.0]
[1733467549277,2.06,238.25,238.17,1.0]
[1733467549475,5.81263084,238.22,238.17,1.0]
[1733467550070,2.0972,238.23,238.17,3.0977]
[1733467550267,5.81263084,238.22,238.17,1.0]
[1733467550576,5.81263084,238.24,238.17,1.0]
[1733467551471,7.90973084,238.24,238.17,3.0976]
[1733467551666,7.90973084,238.24,238.17,1.0]
[1733467552073,5.81263084,238.24,238.17,1.0]
[1733467552275,2.0972,238.23,238.18,2.0976]
[1733467552574,5.81263084,238.22,238.17,1.0]
[1733467553773,2.0974,238.21,238.17,1.0]
[1733467556478,7.90993084,238.22,238.17,3.0977]
[1733467556882,0.1522,238.35,238.21,5.81263084]
[1733467557075,5.81263084,238.29,238.22,2.0973]
[1733467557282,5.81263084,238.29,238.21,5.81263084]
[1733467557671,2.097,238.26,238.21,7.91003084]
[1733467557985,5.81263084,238.29,238.19,5.81263084]
[1733467558171,5.81263084,238.27,238.19,5.81263084]
[1733467560382,2.06,238.34,238.19,5.81263084]
[1733467560583,5.81263084,238.27,238.19,5.81263084]
[1733467560787,2.06,238.29,238.19,5.81263084]
[1733467560987,5.81263084,238.27,238.19,5.81263084]
[1733467561380,2.0971,238.24,238.2,2.0974]
[1733467562187,2.0972,238.23,238.19,2.0975]
[1733467562386,2.06,238.29,238.17,6.81263084]
[1733467562387,5.81263084,238.25,238.17,6.81263084]
[1733467563486,2.0972,238.24,238.18,2.0976]
[1733467563688,5.81263084,238.25,238.17,6.81263084]
[1733467564488,2.0973,238.22,238.18,2.0976]
[1733467564788,2.0973,238.22,238.17,6.81263084]
[1733467564789,5.81263084,238.23,238.17,1.0]